bitfinex/quotes_ETHUSD_20251124
["timestamp","ask_amount","ask_price","bid_price","bid_amount"]
[1763952204612,0.4902,2847.5,2847.2,0.09831]
[1763952205024,0.4902,2847.5,2846.8,0.001]
[1763952205025,0.4734,2847.3,2846.8,0.001]
[1763952205332,0.19,2846.9,2846.8,0.09931]
[1763952205835,0.19,2847.9,2846.8,0.001]
[1763952206026,0.4902,2847.5,2847.0,0.09831]
[1763952208335,0.4902,2847.5,2847.3,0.09831]
[1763952208749,0.4734,2847.4,2847.3,0.09831]
[1763952209340,0.4902,2847.7,2847.3,0.09831]
[1763952209697,0.4734,2847.4,2846.9,0.226]
[1763952209900,0.04390123,2847.3,2847.1,0.09831]
[1763952210220,0.4902,2847.3,2847.1,0.09831]
[1763952210417,0.4734,2847.2,2847.1,0.09831]
[1763952210946,0.19,2847.9,2847.1,0.09831]
[1763952211109,0.4902,2847.8,2846.8,0.227]
[1763952211314,0.4902,2847.8,2847.2,0.09831]
[1763952211626,0.4902,2847.8,2846.8,0.60099317]
[1763952211627,0.4902,2847.8,2846.8,0.227]
[1763952211805,0.4902,2847.8,2847.3,0.09831]
[1763952212005,0.4902,2847.8,2847.5,0.09831]
[1763952212713,0.4734,2847.6,2846.8,0.001]
[1763952212900,0.4902,2847.8,2846.8,0.001]
[1763952212901,0.04389815,2847.5,2846.8,0.001]
[1763952213106,0.6634,2846.9,2846.8,0.001]
[1763952213635,1.1536,2846.9,2846.8,0.001]
[1763952214001,0.19,2847.9,2846.8,0.018]
[1763952214228,0.04389353,2847.8,2846.8,0.35408983]
[1763952214564,0.6634,2846.9,2846.8,0.001]
[1763952214931,0.4902,2847.2,2846.8,0.001]
[1763952215563,0.4902,2847.2,2846.9,0.09831]
[1763952215735,0.4902,2847.8,2847.2,0.09831]
[1763952216061,0.19,2847.9,2847.6,0.09831]
[1763952216430,0.002,2848.0,2847.8,0.09831]
[1763952216822,1.1053,2847.9,2847.5,0.09831]
[1763952217029,0.04389353,2847.8,2847.5,0.09831]
[1763952217278,0.4676,2847.6,2847.5,0.09831]
[1763952217629,0.9244,2847.6,2847.1,0.09831]
[1763952217831,0.04389815,2847.5,2847.1,0.09831]
[1763952218029,0.50069815,2847.5,2847.1,0.09831]
[1763952218329,0.50069815,2847.5,2846.8,0.001]
[1763952218330,0.6377,2847.9,2846.8,0.001]
[1763952218550,0.1809,2847.9,2847.3,0.09831]
[1763952218726,0.002,2848.0,2847.9,0.09831]
[1763952219766,0.4696,2848.0,2847.9,0.09831]
[1763952220260,0.9264,2848.0,2847.9,0.09831]
[1763952220460,0.9264,2848.0,2847.2,0.226]
[1763952220661,0.68159199,2847.9,2847.6,0.09831]
[1763952221031,0.4676,2847.7,2847.6,0.09831]
[1763952221737,0.96829507,2847.7,2847.4,0.09831]
[1763952222126,0.4676,2847.5,2847.1,0.09831]
[1763952222556,0.50069969,2847.4,2847.1,0.09831]
[1763952223278,0.4676,2847.2,2847.1,0.09831]
[1763952223571,0.4676,2847.2,2846.8,0.001]
[1763952223861,0.6427,2846.9,2846.8,0.001]
[1763952224230,0.4678,2847.7,2847.0,0.09831]
[1763952224436,0.04389661,2847.6,2846.9,0.09831]
[1763952224888,0.4603,2847.0,2846.9,0.09831]
[1763952225181,0.4603,2847.0,2846.8,0.001]
[1763952225393,1.1105,2846.9,2846.8,0.001]
[1763952225880,0.9281,2846.9,2846.8,0.001]
[1763952226167,0.9281,2846.9,2846.5,0.001]
[1763952226344,0.4603,2846.6,2846.5,0.001]
[1763952226746,0.9281,2846.6,2846.5,0.001]
[1763952228133,5.34805547,2846.6,2846.5,0.001]
[1763952228477,5.94672661,2846.6,2846.5,0.001]
[1763952228831,2.43376378,2846.6,2846.5,0.001]
[1763952229199,1.83509264,2846.6,2846.5,0.001]
[1763952233145,6.32,2847.0,2846.5,0.001]
[1763952233326,0.4678,2846.9,2846.5,0.001]
[1763952234565,0.4678,2846.9,2846.5,0.09931]
[1763952235066,0.4603,2846.6,2846.5,0.001]
[1763952235237,0.5117074,2846.9,2846.5,0.001]
[1763952235238,0.4678,2846.9,2846.5,0.001]
[1763952235433,1.27811926,2846.9,2846.5,0.001]
[1763952235845,0.81031926,2846.9,2846.5,0.001]
[1763952236545,0.4603,2846.6,2846.5,0.001]
[1763952236723,0.4678,2846.8,2846.5,0.001]
[1763952236924,0.81031926,2846.9,2846.5,0.001]
[1763952237136,0.90699264,2847.0,2846.5,0.001]
[1763952237357,1.37479264,2847.0,2846.5,0.001]
[1763952237856,0.4678,2846.9,2846.5,0.001]
[1763952238256,0.5117074,2846.9,2846.5,0.001]
[1763952238424,0.4678,2846.9,2846.5,0.001]
[1763952238754,0.4603,2846.6,2846.5,0.001]
[1763952239118,0.9281,2846.6,2846.5,0.001]
[1763952239357,1.27811926,2846.9,2846.5,0.001]
[1763952239540,0.4698,2846.8,2846.5,0.001]
[1763952240425,0.4603,2846.6,2846.5,0.001]
[1763952240832,0.9281,2846.6,2846.5,0.001]
[1763952241054,1.63371281,2846.6,2845.0,0.018]
[1763952241371,0.4678,2846.5,2845.7,0.09831]
[1763952241537,0.4678,2846.5,2845.9,0.09831]
[1763952241740,0.226,2846.7,2845.0,7.04785644]
[1763952241741,0.226,2846.7,2846.5,0.09831]
[1763952241951,0.002,2846.8,2846.6,0.019]
[1763952242152,0.002,2846.8,2846.7,0.09831]
[1763952242527,0.002,2846.8,2846.7,0.11731]
[1763952242855,0.002,2846.8,2846.7,0.13631]
[1763952243061,0.002,2846.8,2846.7,0.11731]
[1763952244065,0.002,2846.8,2846.7,0.09831]
[1763952244234,0.4623,2846.8,2846.5,0.09831]
[1763952244628,0.4623,2846.8,2845.9,0.019]
[1763952244629,0.002,2846.8,2845.9,0.019]
[1763952244859,0.002,2846.8,2845.6,0.226]
[1763952244860,0.002,2846.8,2846.7,0.11731]
[1763952246528,0.002,2846.8,2846.7,0.13631]
[1763952246936,0.002,2846.8,2846.7,0.50124528]
[1763952247584,0.002,2846.8,2846.7,0.48224528]
[1763952247876,0.002,2846.8,2846.7,0.09831]
[1763952248868,0.002,2846.8,2846.7,0.019]
[1763952249043,0.002,2846.8,2846.7,0.11731]
[1763952249536,0.9555,2846.8,2846.3,0.09831]
[1763952249835,0.9555,2846.8,2845.7,0.019]
[1763952249836,0.9555,2846.8,2846.1,0.09831]
[1763952250070,0.9555,2846.8,2846.2,0.09831]
[1763952250563,0.5015,2846.8,2846.2,0.09831]
[1763952250730,0.002,2846.8,2846.2,0.09831]
[1763952250935,0.002,2846.8,2846.5,0.09831]
[1763952251133,0.456,2846.8,2846.1,0.09831]
[1763952251581,0.04391049,2846.7,2846.1,0.09831]
[1763952251929,0.454,2846.7,2846.1,0.09831]
[1763952253538,0.002,2846.8,2846.1,0.019]
[1763952253764,0.002,2846.8,2846.7,0.09831]
[1763952254372,0.9555,2846.8,2845.8,3.51389475]
[1763952254535,0.9555,2846.8,2846.3,0.09831]
[1763952254735,0.454,2846.7,2846.3,0.09831]
[1763952256977,0.454,2846.7,2846.2,0.09831]
[1763952257670,0.002,2846.8,2846.2,0.09831]
[1763952257839,0.002,2846.8,2846.3,0.09831]
[1763952258242,0.456,2846.8,2846.3,0.09831]
[1763952258466,0.456,2846.8,2846.3,0.09931]
[1763952258669,0.4995,2846.4,2846.3,0.001]
[1763952259137,0.9535,2846.4,2846.3,0.001]
[1763952259584,0.454,2846.7,2846.3,0.001]
[1763952259784,0.4995,2846.4,2846.3,0.001]
[1763952260154,0.9535,2846.4,2846.3,0.001]
[1763952260789,0.456,2846.8,2846.3,0.001]
[1763952260975,0.002,2846.8,2846.4,0.019]
[1763952261154,0.002,2846.8,2846.7,0.11731]
[1763952262198,0.002,2846.8,2846.5,0.09831]
[1763952262397,0.002,2846.8,2846.7,0.09831]
[1763952263796,0.002,2846.8,2846.4,0.09831]
[1763952263998,0.002,2846.8,2846.7,0.11731]
[1763952264199,0.002,2846.8,2846.7,0.36231]
[1763952264913,0.002,2846.8,2846.7,0.11731]
[1763952265120,0.002,2846.8,2846.7,3.64914942]
[1763952265273,0.002,2846.8,2846.7,4.38795987]
[1763952268115,0.002,2846.8,2846.7,5.29495251]
[1763952270181,0.002,2846.8,2846.7,5.52095251]
[1763952272581,0.002,2846.8,2846.7,5.27595251]
[1763952272782,0.002,2846.8,2846.7,5.50195251]
[1763952273003,0.002,2846.8,2846.7,0.83712045]
[1763952273304,0.002,2846.8,2846.7,0.32431]
[1763952273511,0.002,2846.8,2846.7,0.34331]
[1763952275002,0.002,2846.8,2846.7,3.85614942]
[1763952275214,0.002,2846.8,2846.7,3.87514942]
[1763952275378,0.002,2846.8,2846.7,3.85614942]
[1763952275714,0.002,2846.8,2846.7,1.06122985]
[1763952276422,0.002,2846.8,2846.7,3.85614942]
[1763952277211,0.002,2846.8,2846.7,3.87514942]
[1763952280172,0.002,2846.8,2846.7,4.78214206]
[1763952280372,0.002,2846.8,2846.7,10.04065006]
[1763952280578,0.002,2846.8,2846.7,9.77885006]
[1763952280779,0.002,2846.8,2846.7,11.10813038]
[1763952281074,0.002,2847.8,2846.8,0.90699264]
[1763952281279,0.002,2847.8,2847.7,0.11731]
[1763952281574,0.002,2847.8,2847.7,0.34331]
[1763952281773,0.002,2847.8,2847.7,0.32431]
[1763952282714,0.4595,2847.8,2847.7,0.09831]
[1763952283016,0.9401,2847.8,2847.6,0.09831]
[1763952283382,0.9381,2847.7,2847.1,0.226]
[1763952283582,0.9381,2847.7,2847.6,0.09831]
[1763952283795,0.9381,2847.7,2846.8,3.51259915]
[1763952283796,0.002,2847.8,2846.7,4.84208201]
[1763952284113,0.4884,2847.1,2847.0,0.32431]
[1763952284308,0.4988,2847.7,2846.9,0.09831]
[1763952284496,0.4988,2847.7,2847.0,0.019]
[1763952284700,0.4988,2847.7,2847.6,0.09831]
[1763952285212,0.9872,2847.7,2847.6,0.09831]
[1763952285418,0.9872,2847.7,2847.2,0.09831]
[1763952285642,0.4884,2847.3,2846.9,0.09831]
[1763952285860,0.54269661,2847.6,2846.5,0.001]
[1763952285861,0.4988,2847.6,2846.5,0.001]
[1763952286019,0.4884,2846.6,2846.5,0.001]
[1763952286405,0.9872,2846.6,2846.5,0.001]
[1763952287302,0.4884,2846.6,2846.5,0.001]
[1763952287499,0.9872,2846.6,2846.5,0.101]
[1763952288210,0.9872,2846.6,2846.5,0.001]
[1763952289042,0.9872,2846.6,2846.5,0.101]
[1763952290630,0.9872,2846.6,2846.5,0.001]
[1763952290931,0.4884,2846.3,2845.4,0.1]
[1763952291108,0.4884,2846.0,2844.9,0.1]
[1763952291513,0.6877,2845.9,2845.2,0.1]
[1763952291914,0.4884,2845.3,2845.2,0.1]
[1763952292149,0.4884,2845.3,2845.1,0.1]
[1763952292345,0.9872,2845.3,2845.1,0.1]
[1763952292548,0.4884,2845.2,2845.1,0.1]
[1763952292763,0.4988,2845.7,2845.1,0.1]
[1763952292920,0.4988,2845.7,2844.7,0.1203]
[1763952292921,0.4988,2845.7,2845.4,0.1]
[1763952293481,0.4884,2845.5,2845.4,0.1]
[1763952294474,0.4988,2845.7,2845.5,0.1]
[1763952294984,0.4884,2845.6,2845.5,0.1]
[1763952295680,0.9872,2845.6,2845.5,0.1]
[1763952295881,0.9872,2845.6,2845.4,0.001]
[1763952296046,0.9872,2845.5,2845.4,0.001]
[1763952296903,0.4884,2845.5,2845.4,0.001]
[1763952297171,0.4988,2845.8,2845.7,0.1]
[1763952297575,0.9872,2845.8,2845.5,0.1]
[1763952297870,0.4884,2845.8,2845.5,0.1]
[1763952298070,0.1889,2845.9,2845.4,0.001]
[1763952298286,0.4988,2845.7,2845.6,0.1]
[1763952298789,0.9872,2845.7,2845.6,0.1]
[1763952299087,0.1889,2845.9,2845.8,0.1]
[1763952299476,0.6773,2845.9,2845.8,0.1]
[1763952300093,0.47785842,2846.6,2845.4,0.001]
[1763952300094,0.1889,2846.2,2846.1,0.1]
[1763952300278,0.1889,2846.4,2846.3,0.1]
[1763952300480,0.1889,2846.4,2845.4,0.001]
[1763952300481,0.9872,2846.4,2845.4,0.001]
[1763952300795,0.04591203,2846.6,2845.7,0.1]
[1763952300796,0.002,2846.6,2845.7,0.1]
[1763952300993,0.002,2846.6,2845.5,0.1203]
[1763952301162,0.002,2846.6,2845.6,0.94100932]
[1763952301498,0.002,2846.6,2846.5,0.1]
[1763952301871,0.002,2846.6,2846.5,0.2203]
[1763952302061,0.002,2846.6,2846.5,3.85368624]
[1763952302257,0.002,2846.9,2846.6,0.90699264]
[1763952302472,0.002,2846.9,2846.8,0.2183]
[1763952302773,0.002,2846.9,2846.8,0.3366]
[1763952303176,0.002,2846.9,2846.8,4.464606]
[1763952303470,0.002,2847.2,2847.1,4.591]
[1763952303674,0.002,2847.8,2847.7,0.1]
[1763952304485,0.002,2847.8,2847.7,0.2183]
[1763952304796,0.002,2847.8,2847.7,0.1]
[1763952305293,0.002,2847.8,2847.7,0.3366]
[1763952305663,0.002,2847.8,2847.7,0.1]
[1763952306712,0.9923,2847.8,2847.7,0.1]
[1763952307006,1.03619353,2847.8,2847.4,0.1]
[1763952307177,0.4906,2847.7,2846.7,0.3443]
[1763952307383,0.4906,2847.7,2847.5,0.1]
[1763952307692,0.53449507,2847.7,2847.5,0.1]
[1763952307901,0.4997,2847.6,2846.7,0.226]
[1763952308065,0.4997,2847.6,2847.2,0.1]
[1763952308066,0.04389815,2847.5,2847.2,0.1]
[1763952308268,0.53449815,2847.5,2847.2,0.1]
[1763952308466,0.4997,2847.3,2847.2,0.1]
[1763952308966,0.9903,2847.3,2847.2,0.1]
[1763952309399,0.4906,2847.7,2847.5,0.1]
[1763952309784,0.4997,2847.6,2847.5,0.1]
[1763952309983,0.4997,2847.6,2845.2,3.51457417]
[1763952309984,0.54359661,2847.6,2846.1,4.42057262]
[1763952310265,0.4906,2847.5,2846.9,0.1]
[1763952310484,0.4997,2847.0,2846.9,0.1]
[1763952310690,0.53449815,2847.5,2846.9,0.1]
[1763952310892,0.04389969,2847.4,2847.2,0.1]
[1763952311306,0.04389969,2847.4,2846.2,0.226]
[1763952311307,0.9903,2847.3,2846.8,0.1]
[1763952311765,0.4906,2847.2,2846.2,0.226]
[1763952311970,0.1888,2846.9,2846.8,0.1]
[1763952312202,0.4906,2847.2,2846.2,7.25291198]
[1763952312401,0.002,2847.8,2846.2,7.25291198]
[1763952312402,0.4906,2847.7,2847.4,0.1]
[1763952312600,0.4906,2847.7,2846.3,0.8554212]
[1763952312802,0.4906,2847.7,2846.3,0.7371212]
[1763952313003,0.04389661,2847.6,2847.0,0.1]
[1763952313209,0.4906,2847.7,2846.4,0.3443]
[1763952313420,0.4906,2847.7,2847.6,0.1]
[1763952313931,0.9903,2847.7,2847.6,0.1]
[1763952314221,0.4997,2847.7,2847.6,0.1]
[1763952314429,0.002,2847.8,2847.6,0.1]
[1763952314579,0.9903,2847.7,2846.8,0.001]
[1763952314998,0.9903,2847.7,2847.5,0.1]
[1763952315173,0.9903,2847.7,2847.6,0.1]
[1763952315379,0.4997,2847.7,2847.6,0.1]
[1763952315785,0.9903,2847.7,2847.6,0.1]
[1763952315990,0.9903,2847.7,2847.5,0.1]
[1763952316403,0.9903,2847.6,2847.5,0.1]
[1763952316925,0.9903,2847.6,2847.2,0.1]
[1763952317082,0.4906,2847.5,2847.2,0.1]
[1763952317283,0.4997,2847.3,2847.2,0.1]
[1763952317681,0.9903,2847.3,2847.2,0.1]
[1763952318018,0.4906,2847.7,2847.2,0.1]
[1763952318177,0.9903,2847.3,2846.8,0.101]
[1763952318378,0.6741,2846.9,2846.8,0.001]
[1763952318812,1.1647,2846.9,2846.5,0.001]
[1763952319015,0.4906,2846.8,2846.7,0.1]
[1763952319186,0.9903,2846.8,2846.5,0.001]
[1763952319386,0.4997,2846.6,2846.5,0.001]
[1763952319594,0.1744,2846.9,2846.5,0.101]
[1763952319939,0.4906,2847.3,2846.5,3.63336088]
[1763952320081,0.4906,2847.3,2847.2,0.1]
[1763952320528,0.228,2847.8,2846.6,0.36333609]
[1763952320529,0.4906,2847.6,2846.6,3.87628051]
[1763952320685,0.4906,2847.6,2847.4,0.1]
[1763952321209,0.54359815,2847.5,2847.0,0.1]
[1763952321514,0.54359815,2847.5,2846.9,0.1]
[1763952321515,0.4997,2847.5,2846.9,0.1]
[1763952321835,0.4906,2847.4,2846.9,0.1]
[1763952322179,0.4906,2847.4,2847.2,0.1]
[1763952323185,0.4906,2847.7,2847.2,0.1]
[1763952323386,0.4906,2847.7,2847.4,0.1]
[1763952323916,0.4997,2847.5,2847.4,0.1]
[1763952324791,0.4906,2847.7,2847.4,0.1]
[1763952324996,0.4906,2847.7,2847.6,0.1]
[1763952325398,0.9903,2847.7,2847.6,0.1]
[1763952325592,0.9903,2847.7,2846.7,0.1193]
[1763952325806,0.04389661,2847.6,2847.4,0.1]
[1763952325995,0.53449661,2847.6,2847.4,0.1]
[1763952326213,0.4997,2847.5,2847.4,0.1]
[1763952326821,0.002,2847.8,2847.4,0.1]
[1763952327018,0.4906,2847.7,2847.4,0.1]
[1763952327533,0.4997,2847.5,2847.4,0.1]
[1763952327695,0.4997,2847.5,2847.2,0.1]
[1763952327891,0.4906,2847.4,2847.2,0.1]
[1763952328197,0.4997,2847.3,2847.2,0.1]
[1763952328416,0.9903,2847.3,2847.2,0.1]
[1763952329112,0.4906,2847.7,2847.2,0.1]
[1763952329309,0.4906,2847.7,2846.7,3.5128329]
[1763952329630,0.4906,2847.7,2847.4,0.1]
[1763952330122,0.4997,2847.5,2847.4,0.1]
[1763952330698,0.9903,2847.5,2847.4,0.1]
[1763952330923,0.002,2847.8,2847.7,0.1]
[1763952331236,0.4926,2847.8,2847.7,0.1]
[1763952331403,0.9923,2847.8,2847.7,0.1]
[1763952331928,1.03619353,2847.8,2846.8,0.70257884]
[1763952332229,0.002,2847.5,2847.2,0.1]
[1763952332404,0.4997,2846.6,2846.5,0.001]
[1763952332605,0.4997,2846.6,2846.5,0.101]
[1763952332807,0.9903,2846.6,2846.5,0.101]
[1763952332994,0.9903,2846.6,2846.5,0.001]
[1763952335199,1.55380832,2846.6,2846.5,0.001]
[1763952335891,1.55380832,2846.6,2845.9,0.001]
[1763952335892,11.53684339,2846.6,2845.9,0.001]
[1763952336093,0.4997,2846.3,2845.9,0.001]
[1763952336516,0.4997,2846.0,2845.9,0.001]
[1763952336717,0.7257,2846.0,2845.9,0.001]
[1763952336919,1.2195,2846.0,2845.9,0.001]
[1763952337619,2.60235106,2846.0,2845.9,0.001]
[1763952337821,3.50080698,2846.0,2845.9,0.001]
[1763952338134,2.11795592,2846.0,2845.9,0.001]
[1763952338302,0.9935,2846.0,2845.9,0.001]
[1763952338500,1.2195,2846.0,2845.9,0.001]
[1763952340132,1.69535842,2846.0,2845.9,0.001]
[1763952340636,1.2195,2846.0,2845.9,0.001]
[1763952340933,0.9935,2846.0,2845.9,0.001]
[1763952341103,1.2195,2846.0,2845.9,0.001]
[1763952344764,2.85892161,2846.0,2845.9,0.001]
[1763952345068,6.37262505,2846.0,2845.9,0.001]
[1763952345364,2.58900032,2846.0,2845.9,0.001]
[1763952345564,1.20614926,2846.0,2845.9,0.001]
[1763952345780,1.2195,2846.0,2845.9,0.001]
[1763952345967,6.64059597,2846.0,2845.9,0.001]
[1763952346131,1.38285106,2845.9,2845.4,0.001]
[1763952346336,0.4737,2845.5,2845.4,0.001]
[1763952346565,0.6997,2845.5,2845.4,0.001]
[1763952346752,1.23372901,2845.5,2845.4,0.001]
[1763952346958,1.40387217,2845.5,2845.4,0.001]
[1763952348144,1.17787217,2845.5,2845.4,0.001]
[1763952348349,1.40387217,2845.5,2845.4,0.001]
[1763952348572,1.44780118,2845.5,2845.4,0.001]
[1763952348874,1.40387217,2845.5,2845.4,0.001]
[1763952349449,1.44780118,2845.5,2845.4,0.001]
[1763952349665,1.40387217,2845.5,2845.4,0.001]
[1763952349864,1.1898,2845.5,2845.4,0.001]
[1763952350183,0.226,2845.5,2845.4,0.001]
[1763952350678,0.90699264,2845.7,2845.4,0.001]
[1763952350886,0.226,2845.6,2845.4,0.001]
[1763952351449,0.4737,2845.5,2845.4,0.001]
[1763952351649,0.90699264,2845.7,2845.4,0.001]
[1763952351867,0.96595842,2846.3,2845.4,0.001]
[1763952352080,0.70662018,2846.2,2845.6,0.1]
[1763952352388,0.04391974,2846.1,2845.6,0.1]
[1763952352582,0.53401974,2846.1,2845.6,0.1]
[1763952352784,0.53401974,2846.1,2845.5,0.1]
[1763952352986,0.53401974,2846.1,2845.4,0.001]
[1763952353305,0.4737,2845.5,2845.4,0.001]
[1763952353484,1.6561786,2845.5,2845.4,0.001]
[1763952353649,2.1462786,2845.5,2845.4,0.001]
[1763952353849,2.36090646,2845.5,2845.4,0.001]
[1763952354885,1.88028628,2845.5,2845.4,0.001]
[1763952355257,1.40442786,2845.5,2845.4,0.001]
[1763952356870,0.226,2845.5,2845.4,0.001]
[1763952357704,1.1898,2845.5,2845.4,0.001]
[1763952358003,0.226,2845.5,2845.4,0.001]
[1763952358202,1.1898,2845.5,2845.4,0.001]
[1763952359503,1.23372901,2845.5,2845.4,0.001]
[1763952359709,1.1898,2845.5,2845.4,0.001]
[1763952360407,0.68337926,2845.5,2845.4,0.001]
[1763952360711,1.1898,2845.5,2845.4,0.001]
[1763952361382,0.226,2845.5,2845.4,0.001]
[1763952361586,6.32,2845.8,2845.4,0.001]
[1763952361891,0.226,2845.7,2845.4,0.2203]
[1763952362426,0.226,2845.8,2845.6,0.1193]
[1763952362628,0.4737,2845.7,2845.4,0.001]
[1763952362780,0.4921,2846.6,2845.7,0.1193]
[1763952363097,0.92336972,2846.5,2845.4,0.001]
[1763952363310,0.04391512,2846.4,2845.4,0.101]
[1763952363485,0.90637354,2846.4,2845.4,0.101]
[1763952363676,0.53401512,2846.4,2845.4,0.001]
[1763952363876,0.7161,2846.3,2845.4,0.1203]
[1763952364184,0.7161,2846.3,2845.5,0.1]
[1763952364498,0.4737,2845.6,2845.4,0.001]
[1763952364715,1.1898,2845.5,2845.4,0.001]
[1763952365416,0.9638,2845.5,2845.4,0.001]
[1763952365589,1.1898,2845.5,2845.4,0.001]
[1763952366302,0.9638,2845.5,2845.4,0.001]
[1763952366628,0.6997,2845.5,2845.4,0.001]
[1763952366829,0.226,2845.5,2845.4,0.001]
[1763952368894,1.1446,2845.5,2845.4,0.001]
[1763952369421,1.34975926,2845.5,2845.4,0.001]
[1763952369624,1.1446,2845.5,2845.4,0.001]
[1763952370134,0.9186,2845.5,2845.4,0.001]
[1763952370440,0.226,2845.5,2845.4,0.001]
[1763952370933,1.37259264,2845.9,2845.4,0.001]
[1763952371130,1.23285926,2845.8,2845.4,0.001]
[1763952371299,0.226,2845.7,2845.4,0.001]
[1763952371633,0.226,2845.7,2845.4,0.101]
[1763952372200,0.226,2845.7,2845.4,0.001]
[1763952373001,0.226,2845.7,2845.4,0.101]
[1763952373201,0.90899264,2845.9,2845.4,0.001]
[1763952373401,0.455,2845.5,2845.4,0.001]
[1763952373818,0.9186,2845.5,2845.4,0.001]
[1763952375538,0.96252901,2845.5,2845.4,0.001]
[1763952375705,1.82559264,2845.5,2845.4,0.001]
[1763952376538,1.58799264,2845.5,2845.4,0.001]
[1763952376708,0.97495806,2845.5,2845.4,0.001]
[1763952377066,0.226,2845.5,2845.4,0.001]
[1763952377338,1.1446,2845.5,2845.4,0.001]
[1763952378740,1.18852901,2845.5,2845.4,0.001]
[1763952378946,1.1446,2845.5,2845.4,0.001]
[1763952379239,1.18852901,2845.5,2845.4,0.001]
[1763952379443,1.39808118,2845.5,2845.4,0.001]
[1763952380352,1.35415217,2845.5,2845.4,0.001]
[1763952380952,2.26114481,2845.5,2845.4,0.001]
[1763952381136,6.18055155,2845.5,2845.4,0.001]
[1763952381678,8.35514481,2845.5,2845.4,0.001]
[1763952381836,8.58114481,2845.5,2845.4,0.001]
[1763952383041,7.43654481,2845.5,2845.4,0.001]
[1763952383241,6.32,2845.5,2845.4,0.001]
[1763952383552,7.45299264,2845.5,2845.4,0.001]
[1763952383869,7.90799264,2845.5,2845.4,0.001]
[1763952384274,8.37159264,2845.5,2845.4,0.001]
[1763952385176,8.14559264,2845.5,2845.4,0.001]
[1763952385470,8.70105169,2845.5,2845.4,0.001]
[1763952385635,9.57115686,2845.5,2845.4,0.001]
[1763952386640,9.10755686,2845.5,2845.4,0.001]
[1763952386837,8.23745169,2845.5,2845.4,0.001]
[1763952387673,6.64945905,2845.5,2845.4,0.001]
[1763952388179,7.78245169,2845.5,2845.4,0.001]
[1763952388745,7.78245169,2845.5,2845.4,0.1203]
[1763952388941,7.78243056,2845.5,2845.4,0.1203]
[1763952389678,1.23643056,2845.5,2845.4,0.1203]
[1763952389884,1.13299264,2845.5,2845.4,0.1203]
[1763952391676,0.90699264,2845.5,2845.4,0.1203]
[1763952392578,0.90699264,2845.5,2845.4,0.001]
[1763952392795,0.90699264,2845.5,2845.4,0.1203]
[1763952392972,0.90699264,2845.5,2845.4,0.2396]
[1763952393158,0.90699264,2845.5,2845.4,0.1203]
[1763952393485,0.90699264,2845.5,2845.4,0.3396]
[1763952393850,0.90699264,2845.5,2845.4,0.001]
[1763952394252,0.90699264,2845.5,2845.4,0.1203]
[1763952394567,0.90699264,2845.5,2845.4,0.2396]
[1763952394779,0.90699264,2845.5,2845.4,0.3396]
[1763952395203,0.90699264,2845.5,2845.4,0.101]
[1763952395362,0.90699264,2845.5,2845.4,0.2396]
[1763952395562,0.90699264,2845.5,2845.4,0.3396]
[1763952396192,0.002,2845.9,2845.4,0.2203]
[1763952396392,0.6896,2845.8,2845.4,0.001]
[1763952396600,0.84187738,2845.7,2845.4,0.001]
[1763952396794,0.32947442,2845.6,2845.4,0.001]
[1763952397110,0.52292901,2845.5,2845.4,0.001]
[1763952397284,0.85241052,2845.5,2845.4,0.001]
[1763952397802,0.226,2845.8,2845.4,0.1203]
[1763952398600,0.04392592,2845.7,2845.4,0.001]
[1763952398906,0.479,2845.5,2845.4,0.001]
[1763952399397,0.9475,2845.5,2845.4,0.001]
[1763952401208,0.226,2845.5,2845.4,0.001]
[1763952401370,0.002,2845.9,2845.4,0.1203]
[1763952401577,0.6935,2845.8,2845.4,0.001]
[1763952401773,0.04392592,2845.7,2845.4,0.001]
[1763952402471,0.225,2845.8,2845.4,0.001]
[1763952402689,0.225,2845.8,2845.6,0.1193]
[1763952403316,0.002,2845.9,2845.7,0.1193]
[1763952403610,0.002,2845.9,2845.8,0.1193]
[1763952404710,0.4815,2845.9,2845.4,0.001]
[1763952405007,0.99662283,2845.9,2845.4,0.001]
[1763952405312,0.002,2845.7,2845.4,0.001]
[1763952405678,0.4732,2845.7,2845.4,0.001]
[1763952405873,0.4795,2845.5,2845.4,0.001]
[1763952406091,0.4732,2845.7,2845.4,0.001]
[1763952407478,0.4795,2845.5,2845.4,0.001]
[1763952407678,0.7045,2845.5,2845.4,0.001]
[1763952408306,1.21962901,2845.5,2845.4,0.001]
[1763952409082,1.73997674,2845.5,2845.4,0.001]
[1763952409679,2.06942534,2845.5,2845.4,0.001]
[1763952409916,2.97641798,2845.5,2845.4,0.001]
[1763952410616,6.49073883,2845.5,2845.4,0.001]
[1763952411122,15.91383883,2845.5,2845.4,0.001]
[1763952411279,29.71008572,2845.4,2843.7,0.1193]